Workbook

Sheet Tournaments
A1: Current Bankroll: | D1: =N11+C3 -> 6.49 | H1: Sugg. Buy In: | J1: =Worksheet!B8 -> 0.0649
A2: Overall Stats | F2: Finish Positions | K2: Buy-ins
A3: Total Profit | C3: =SUM(I12:I2000) -> -2.75 | F3: ITM % | G3: =IF($C$5 > 0, COUNTIF(H12:H2000, ">0")/C5, 0) -> 0 | H3: Late % | I3: =IF($C$5 > 0, Worksheet!I5/$C$5, "") -> 0 | K3: Suggested BI | M3: =Worksheet!B8 -> 0.0649
A4: Total Time | C4: =SUM(J12:J2000) -> 0.05208333333 | F4: 1st | G4: =COUNTIF(G12:G2000,"=1") -> 0 | H4: Mid Late % | I4: =IF($C$5 > 0, Worksheet!I6/$C$5, "") -> 0 | K4: Allowable BI | M4: =Worksheet!B9 -> 0.08437
A5: Tourneys Played | C5: =COUNT(A12:A2000) -> 50 | F5: 2nd | G5: =COUNTIF(G12:G2000,"=2") -> 0 | H5: Midde % | I5: =IF($C$5 > 0, Worksheet!I7/$C$5, "") -> 0 | K5: Max BI (not recc'd) | M5: =Worksheet!B10 -> 0.08437
A6: ROI | C6: =C3/N11 -> -0.2976190476 | F6: 3rd | G6: =COUNTIF(G12:G2000,"=3") -> 0 | H6: Early Mid % | I6: =IF($C$5 > 0, Worksheet!I8/$C$5, "") -> 0.02 | K6: Average BI | M6: =Worksheet!B5 -> 2.75
A7: BuyIn ROI | C7: 3.566545455 | F7: 4 - 10 | G7: =COUNTIF(G12:G2000,"<11")-SUM(G4:G6) -> 0 | H7: Early % | I7: =IF($C$5 > 0, Worksheet!I9/$C$5, "") -> 0 | K7: Sugg BIs Avail. | M7: =D1/Worksheet!B8 -> 100
A8: $/Hr | C8: 7.8464 | K8: Allow BIs Avail. | M8: =D1/M4 -> 76.92307692
A9: $/Tournament | C9: =IF(C5>0, C3/C5, 0) -> -0.055 | K9: Max Bis Avail. | M9: =D1/Worksheet!B10 -> 76.92307692
A10: # | B10: Date | C10: Start Time | D10: Finish Time | E10: Size | F10: Total Buy-in | G10: Place Finished | H10: Prize | I10: Profit | J10: Length | K10: Placed % | L10: ROI | M10: $/Hr | N10: Bankroll | O10: BI % of BR | P10: Profit % of BR | Q10: Notes
A11: 0 | N11: ='Bankroll Rules'!B3 -> 9.24
A12: =A11+1 -> 1 | B12: 2010-01-01 | C12: 09:30:00 | D12: 10:45:00 | E12: 2000 | F12: 2.75 | G12: 1224 | H12: 0 | I12: =H12-F12 -> -2.75 | J12: =D12-C12 -> 01:15:00 | K12: =G12/E12 -> 0.612 | L12: =I12/F12 -> -1 | M12: =I12/J12/24 -> -2.2 | N12: =N11+I12 -> 6.49 | O12: =F12/N11 -> 0.2976190476 | P12: =IF(I12>0, I12/N11, 0) -> 0
A13: 2
A14: 3
A15: 4
A16: 5
A17: 6
A18: 7
A19: 8
A20: 9
A21: 10
A22: 11
A23: 12
A24: 13
A25: 14
A26: 15
A27: 16
A28: 17
A29: 18
A30: 19
A31: 20
A32: 21
A33: 22
A34: 23
A35: 24
A36: 25
A37: 26
A38: 27
A39: 28
A40: 29
A41: 30
A42: 31
A43: 32
A44: 33
A45: 34
A46: 35
A47: 36
A48: 37
A49: 38
A50: 39
A51: 40
A52: 41
A53: 42
A54: 43
A55: 44
A56: 45
A57: 46
A58: 47
A59: 48
A60: 49
A61: 50

Sheet Bankroll Chart
A1: Tournament | B1: Bankroll
A2: =Tournaments!A11 -> 0 | B2: =IF('Bankroll Rules'!$B$14,0,Tournaments!N11) -> 0
A3: =Tournaments!A12 -> 1 | B3: =IF('Bankroll Rules'!$B$14,SUM(Tournaments!$I$12:I12),Tournaments!N12) -> -2.75
A4: =Tournaments!A13 -> 2 | B4: =IF('Bankroll Rules'!$B$14,SUM(Tournaments!$I$12:I13),Tournaments!N13) -> -2.75
A5: =Tournaments!A14 -> 3 | B5: =IF('Bankroll Rules'!$B$14,SUM(Tournaments!$I$12:I14),Tournaments!N14) -> -2.75
A6: =Tournaments!A15 -> 4 | B6: =IF('Bankroll Rules'!$B$14,SUM(Tournaments!$I$12:I15),Tournaments!N15) -> -2.75
A7: =Tournaments!A16 -> 5 | B7: =IF('Bankroll Rules'!$B$14,SUM(Tournaments!$I$12:I16),Tournaments!N16) -> -2.75

Sheet Bankroll Rules
A1: Bankroll Rules
A2: Fill out the parameters in white below to define your bankroll management strategy.
A3: Starting Bankroll | B3: =ROOMS!D12 -> 9.24 | C3: How much you will start your MTT challenge with
A4: Buyin % of BR | B4: 0.01 | C4: The % of your bankroll you're willing to invest in a single tournament (1-2% is best)
A5: Fudge Factor | B5: 0.3 | C5: Gives you a little bit of wiggle room to stay at the same level before dropping down
A6: Max above avg BI | B6: 0.75 | C6: Hit a big win Bankroll shoots up. Doesn't mean your skills have. Keeps you from moving up too fast.
A7: Recc Buyin | B7: =B3*B4 -> 0.0924 | C7: The recommended buy-in according to your bankroll rules (for reference)
A8: Max Buyin | B8: =(B3*B4)*(1+B5) -> 0.12012 | C8: The maximum buy-in according to rules and fudge factor (for reference)
A9: Num Games | B9: =B3/B7 -> 100 | C9: The number of buy-ins according to your bankroll rules (for reference)
A10: Num Games w/FF | B10: =B3/B8 -> 76.92307692 | C10: The number of buy-ins according to your bankroll rules with Fudge Factor (for reference)
A13: Chart Settings
A14: Winnings Only? | B14: TRUE | C14: Shows only the profit, not the entire bankroll (TRUE or FALSE)

Sheet SummaryData
A1: Summary Data
A2: Gathers information to be used in the 'Bankroll Summary Spreadsheet'
A3: Bankroll | B3: =Tournaments!D1 -> 6.49
A4: Starting Bankroll | B4: ='Bankroll Rules'!B3 -> 9.24
A5: Profit | B5: =Tournaments!C3 -> -2.75
A6: ROI | B6: =Tournaments!C6 -> -0.2976190476
A7: Buy-in ROI | B7: =Tournaments!C7 -> 3.566545455
A8: Total Time | B8: =Tournaments!C4 -> 01:15:00
A9: $/hr | B9: =Tournaments!C8 -> 7.8464

Sheet Worksheet
A1: Do not modify anything on this sheet
E3: Between
A4: Bankroll | B4: =Tournaments!D1 -> 6.49 | E4: max | F4: min | G4: > max | H4: > min | I4: btwn
A5: Average BuyIn | B5: =IF(Tournaments!C5>0,AVERAGE(Tournaments!F12:F2000),B6) -> 2.75 | D5: Late % | E5: 0.2 | F5: 0 | G5: =COUNTIF(Tournaments!$K$12:$K$2000, "<"&E5) -> 0 | H5: =COUNTIF(Tournaments!$K$12:$K$2000, "<"&F5) -> 0 | I5: =IF(G5-H5<0, 0, G5-H5) -> 0
A6: Max BI | B6: =B4*'Bankroll Rules'!B4 -> 0.0649 | D6: Mid Late % | E6: 0.4 | F6: 0.2 | G6: =COUNTIF(Tournaments!$K$12:$K$2000, "<"&E6) -> 0 | H6: =COUNTIF(Tournaments!$K$12:$K$2000, "<"&F6) -> 0 | I6: 0
A7: Max based on ABI | B7: =IF(B5*(1+'Bankroll Rules'!B6)<B6,B5*(1+'Bankroll Rules'!B6),B6) -> 0.0649 | D7: Midde % | E7: 0.6 | F7: 0.4 | G7: =COUNTIF(Tournaments!$K$12:$K$2000, "<"&E7) -> 0 | H7: =COUNTIF(Tournaments!$K$12:$K$2000, "<"&F7) -> 0 | I7: 0
A8: Suggested BI | B8: =IF(B6<B7,B6,B7) -> 0.0649 | D8: Early Mid % | E8: 0.8 | F8: 0.6 | G8: =COUNTIF(Tournaments!$K$12:$K$2000, "<"&E8) -> 1 | H8: =COUNTIF(Tournaments!$K$12:$K$2000, "<"&F8) -> 0 | I8: 1
A9: Sugg BI Fudged | B9: =B8*(1+'Bankroll Rules'!B5) -> 0.08437 | D9: Early % | E9: 1 | F9: 0.8 | G9: =COUNTIF(Tournaments!$K$12:$K$2000, "<"&E9) -> 1 | H9: =COUNTIF(Tournaments!$K$12:$K$2000, "<"&F9) -> 1 | I9: 0
A10: Max BI Fudged | B10: =B6*(1+'Bankroll Rules'!B5) -> 0.08437

Sheet AboutVersion
A1: Version | B1: 1.00

Sheet ROOMS
A1: ROOMS | B1: BANKROLL | C1: Date | D1: euro rate | E1: 1.12
A2: Pokerstars | B2: 1 | D2: =B2 -> 1
A3: Pokerstars ES | B3: 1 | D3: =B3*E1 -> 1.12
A4: Party | B4: 1 | D4: =B4 -> 1
A5: American Cardrooms | B5: 1 | D5: =B5 -> 1
A6: Winamax | B6: 1 | D6: =B6*E1 -> 1.12
A7: 888 | B7: 1 | D7: =B7 -> 1
A8: Pokermatch | B8: 1 | D8: =B8 -> 1
A9: Skrill | D9: 1
A10: Card | D10: 1
D12: =SUM(D2:D10) -> 9.24
